fUST/lending_fUST_20250727
["ID","MTS","AMOUNT","RATE_DAILY","PERIOD"]
[375199851,1753583442787,-632.34,0.00019178,2]
[375199852,1753583442797,-670.75,0.00019178,2]
[375199853,1753583442807,-460.0,0.00019178,2]
[375199854,1753583442817,-461.22360476,0.00019178,2]
[375199855,1753583442827,-460.0,0.00019178,2]
[375199856,1753583442837,-460.0,0.00019178,2]
[375199857,1753583442847,-460.0,0.00019178,2]
[375199858,1753583442857,-3263.29,0.00019178,2]
[375199860,1753583442866,-460.0,0.00019178,2]
[375199861,1753583442876,-460.0,0.00019178,2]
[375199863,1753583442885,-461.9156983,0.00019178,2]
[375199865,1753583442895,-463.04868933,0.00019178,2]
[375199867,1753583442905,-516.66,0.00019178,2]
[375199869,1753583442915,-460.0,0.00019178,2]
[375199871,1753583442924,-4844.33,0.00019178,2]
[375199872,1753583442934,-545.93652662,0.00019178,2]
[375199873,1753583442944,-502.37617633,0.00019178,2]
[375199874,1753583442953,-460.0,0.00019178,2]
[375199875,1753583442964,-599.61,0.00019178,2]
[375199876,1753583442973,-1875.66,0.00019178,2]
[375199877,1753583442983,-1340.76,0.00019178,2]
[375199878,1753583442992,-460.0,0.00019178,2]
[375199879,1753583443002,-724.58,0.00019178,2]
[375199880,1753583443011,-151.59482527,0.00019178,2]
[375199881,1753583443021,-460.0,0.00019178,2]
[375199882,1753583443030,-461.42144976,0.00019178,2]
[375199883,1753583443041,-460.0,0.00019178,2]
[375199884,1753583443050,-629.06,0.00019178,2]
[375199885,1753583443060,-460.0,0.00019178,2]
[375199886,1753583443069,-1096.6,0.00019178,2]
[375199887,1753583443079,-460.0,0.00019178,2]
[375199889,1753583443088,-551.69070757,0.00019178,2]
[375199891,1753583443098,-629.24,0.00019178,2]
[375199893,1753583443107,-460.0,0.00019178,2]
[375199894,1753583443116,-460.0,0.00019178,2]
[375199895,1753583443126,-598.65,0.00019178,2]
[375199897,1753583443135,-460.0,0.00019178,2]
[375199898,1753583443144,-460.0,0.00019178,2]
[375199899,1753583443154,-462.38303758,0.00019178,2]
[375199900,1753583443164,-462.58795039,0.00019178,2]
[375199901,1753583443173,-1031.22,0.00019178,2]
[375199902,1753583443183,-460.0,0.00019178,2]
[375199904,1753583443194,-460.0,0.00019178,2]
[375199905,1753583443203,-466.40349689,0.00019178,2]
[375199906,1753583443214,-460.0,0.00019178,2]
[375199907,1753583443223,-3128.32,0.00019178,2]
[375199908,1753583443232,-460.0,0.00019178,2]
[375199909,1753583443241,-460.0,0.00019178,2]
[375199910,1753583443251,-461.47664032,0.00019178,2]
[375199912,1753583443261,-460.0,0.00019178,2]
[375199914,1753583443271,-551.87,0.00019178,2]
[375199915,1753583443282,-460.0,0.00019178,2]
[375199916,1753583443292,-460.0,0.00019178,2]
[375199917,1753583443302,-460.0,0.00019178,2]
[375199918,1753583443311,-460.0,0.00019178,2]
[375199919,1753583443321,-460.0,0.00019178,2]
[375199920,1753583443330,-502.57,0.00019178,2]
[375199921,1753583443340,-460.0,0.00019178,2]
[375199922,1753583443350,-1708.28,0.00019178,2]
[375199923,1753583443359,-460.0,0.00019178,2]
[375199924,1753583443369,-540.2,0.00019178,2]
[375199925,1753583443378,-460.0,0.00019178,2]
[375199926,1753583443388,-480.15,0.00019178,2]
[375199927,1753583443397,-460.0,0.00019178,2]
[375199928,1753583443407,-460.0,0.00019178,2]
[375199929,1753583443417,-460.0,0.00019178,2]
[375199930,1753583443427,-156.01746237,0.00019178,2]
[375199931,1753583443436,-461.744081,0.00019178,2]
[375199932,1753583443446,-530.23,0.00019178,2]
[375199933,1753583443455,-509.37,0.00019178,2]
[375199934,1753583443466,-460.0,0.00019178,2]
[375199935,1753583443475,-460.0,0.00019178,2]
[375199936,1753583443484,-460.0,0.00019178,2]
[375199937,1753583443494,-460.0,0.00019178,2]
[375199938,1753583443504,-735.01,0.00019178,2]
[375199939,1753583443513,-462.56827979,0.00019178,2]
[375199940,1753583443530,-460.0,0.00019178,2]
[375199941,1753583443540,-463.86035744,0.00019178,2]
[375199942,1753583443550,-460.0,0.00019178,2]
[375199943,1753583443562,-463.14749529,0.00019178,2]
[375199944,1753583443572,-460.0,0.00019178,2]
[375199945,1753583443581,-460.0,0.00019178,2]
[375199946,1753583443592,-460.0,0.00019178,2]
[375199947,1753583443603,-384.65315016,0.00019178,2]
[375199948,1753583443612,-2030.86,0.00019178,2]
[375199949,1753583443622,-1674.76,0.00019178,2]
[375199950,1753583443631,-460.0,0.00019178,2]
[375199951,1753583443641,-460.10705043,0.00019178,2]
[375199952,1753583443656,-460.0,0.00019178,2]
[375199953,1753583443665,-405.49422856,0.00019178,2]
[375199954,1753583443675,-503.00014497,0.00019178,2]
[375199955,1753583443685,-460.0,0.00019178,2]
[375199956,1753583443695,-460.0,0.00019178,2]
[375199957,1753583443704,-465.00929226,0.00019178,2]
[375199958,1753583443715,-460.0,0.00019178,2]
[375199959,1753583443725,-679.1,0.00019178,2]
[375199960,1753583443735,-460.0,0.00019178,2]
[375199961,1753583443744,-2506.87,0.00019178,2]
[375199962,1753583443754,-460.0,0.00019178,2]
[375199963,1753583443763,-466.39,0.00019178,2]
[375199964,1753583443774,-460.0,0.00019178,2]
[375199965,1753583443783,-200.35267815,0.00019178,2]
[375199966,1753583443793,-460.0,0.00019178,2]
[375199967,1753583443802,-460.0,0.00019178,2]
[375199968,1753583443811,-460.0,0.00019178,2]
[375199969,1753583443821,-463.53936524,0.00019178,2]
[375199970,1753583443830,-460.0,0.00019178,2]
[375199971,1753583443840,-767.78,0.00019178,2]
[375199972,1753583443849,-983.88,0.00019178,2]
[375199973,1753583443859,-460.0,0.00019178,2]
[375199974,1753583443868,-460.0,0.00019178,2]
[375199975,1753583443878,-460.0,0.00019178,2]
[375199976,1753583443887,-460.0,0.00019178,2]
[375199977,1753583443896,-460.0,0.00019178,2]
[375199978,1753583443906,-463.01805872,0.00019178,2]
[375199979,1753583443915,-460.0,0.00019178,2]
[375199980,1753583443924,-460.0,0.00019178,2]
[375199981,1753583443933,-460.0,0.00019178,2]
[375199982,1753583443942,-460.0,0.00019178,2]
[375199983,1753583443951,-7108.5,0.00019178,2]
[375199984,1753583443961,-465.40935125,0.00019178,2]
[375199985,1753583443971,-461.4528494,0.00019178,2]
[375199986,1753583443980,-282.96985531,0.00019178,2]
[375199987,1753583443990,-460.0,0.00019178,2]
[375199988,1753583444001,-463.72405297,0.00019178,2]
[375199989,1753583444012,-460.0,0.00019178,2]
[375199990,1753583444022,-614.27,0.00019178,2]
[375199991,1753583444031,-460.0,0.00019178,2]
[375199992,1753583444041,-460.0,0.00019178,2]
[375199993,1753583444050,-460.0,0.00019178,2]
[375199994,1753583444060,-1803.34,0.00019178,2]
[375199995,1753583444070,-460.0,0.00019178,2]
[375199996,1753583444079,-890.42,0.00019178,2]
[375199997,1753583444088,-515.16132996,0.00019178,2]
[375199998,1753583444098,-538.62,0.00019178,2]
[375199999,1753583444107,-466.00322953,0.00019178,2]
[375200000,1753583444116,-500.0,0.00019226,2]
[375200001,1753583444125,-500.0,0.00019226,2]
[375200002,1753583444135,-500.0,0.00019227,2]
[375200003,1753583444145,-500.0,0.00019227,2]
[375200004,1753583444154,-212.03219938,0.00019227,2]
[375200005,1753583444165,-500.0,0.00019227,2]
[375200006,1753583444175,-500.0,0.00019227,2]
[375200007,1753583444185,-500.0,0.00019227,2]
[375200008,1753583444195,-500.0,0.00019227,2]
[375200009,1753583444204,-500.0,0.00019227,2]
[375200010,1753583444215,-500.0,0.00019227,2]
[375200011,1753583444224,-500.0,0.00019227,2]
[375200012,1753583444235,-500.0,0.00019227,2]
[375200013,1753583444245,-500.0,0.00019227,2]
[375200014,1753583444255,-359.13871907,0.00019228,2]
[375200015,1753583444265,-460.0,0.00019228,2]
[375200016,1753583444275,-460.0,0.00019228,2]
[375200017,1753583444285,-460.0,0.00019228,2]
[375200018,1753583444295,-460.0,0.00019228,2]
[375200019,1753583444306,-460.0,0.00019228,2]
[375200020,1753583444315,-460.0,0.00019228,2]
[375200021,1753583444325,-460.0,0.00019228,2]
[375200022,1753583444335,-460.0,0.00019228,2]
[375200023,1753583444344,-460.0,0.00019228,2]
[375200024,1753583444354,-460.0,0.00019228,2]
[375200025,1753583444364,-461.96361122,0.00019228,2]
[375200026,1753583444374,-460.0,0.00019228,2]
[375200027,1753583444384,-460.0,0.00019228,2]
[375200028,1753583444395,-462.01250865,0.00019228,2]
[375200029,1753583444405,-460.0,0.00019228,2]
[375200030,1753583444415,-462.88324077,0.00019228,2]
[375200031,1753583444424,-353.90968715,0.00019228,2]
[375200032,1753583444433,-460.0,0.00019228,2]
[375200033,1753583444444,-2386.91,0.00019228,2]
[375200034,1753583444454,-460.0,0.00019228,2]
[375200035,1753583444465,-460.0,0.00019228,2]
[375200036,1753583444475,-2639.32,0.00019228,2]
[375200037,1753583444486,-460.0,0.00019228,2]
[375200038,1753583444496,-736.92,0.00019228,2]
[375200039,1753583444505,-2430.03,0.00019228,2]
[375200040,1753583444516,-3325.38,0.00019228,2]
[375200041,1753583444531,-461.73070474,0.00019228,2]
[375200042,1753583444541,-562.83706183,0.00019259,2]
[375200043,1753583444550,-516.82807855,0.00019272,2]
[375200044,1753583444560,-562.83706183,0.00019352,2]
[375200045,1753583444570,-460.0,0.00019452,2]
[375200046,1753583444579,-460.0,0.00019452,2]
[375200047,1753583444678,-461.61932475,0.00019452,2]
[375200048,1753583444689,-460.0,0.00019452,2]
[375200049,1753583444698,-460.0,0.00019452,2]
[375200050,1753583444708,-460.0,0.00019452,2]
[375200051,1753583444718,-316.93484419,0.00019452,2]
[375200052,1753583444728,-460.0,0.00019452,2]
[375200053,1753583444737,-460.0,0.00019452,2]
[375200054,1753583444747,-460.3507376,0.00019452,2]
[375200055,1753583444757,-460.0,0.00019452,2]
[375200056,1753583444768,-599.68352466,0.00019452,2]
[375200057,1753583444778,-460.0,0.00019452,2]
[375200058,1753583444787,-460.0,0.00019452,2]
[375200059,1753583444797,-460.0,0.00019452,2]
[375200060,1753583444806,-460.0,0.00019452,2]
[375200061,1753583444816,-553.09149556,0.00019452,2]
[375200062,1753583444825,-460.0,0.00019452,2]
[375200063,1753583444834,-460.0,0.00019452,2]
[375200064,1753583444844,-460.0,0.00019452,2]
[375200065,1753583444853,-460.0,0.00019452,2]
[375200066,1753583444862,-463.72874006,0.00019452,2]
[375200067,1753583444872,-460.0,0.00019452,2]
[375200068,1753583444881,-460.0,0.00019452,2]
[375200069,1753583444891,-460.0,0.00019452,2]
[375200070,1753583444901,-460.0,0.00019452,2]
[375200071,1753583444910,-460.0,0.00019452,2]
[375200072,1753583444920,-460.0,0.00019452,2]
[375200073,1753583444930,-460.0,0.00019452,2]
[375200074,1753583444940,-460.0,0.00019452,2]
[375200075,1753583444949,-460.0,0.00019452,2]
[375200076,1753583444959,-234.19080196,0.00019452,2]
[375200077,1753583444968,-465.0821124,0.00019452,2]
[375200078,1753583444978,-476.16278321,0.00019452,2]
[375200079,1753583444988,-460.0,0.00019452,2]
[375200080,1753583444997,-460.0,0.00019452,2]
[375200081,1753583445007,-464.82117801,0.00019452,2]
[375200082,1753583445016,-460.0,0.00019452,2]
[375200083,1753583445026,-460.0,0.00019452,2]
[375200084,1753583445035,-429.72458879,0.00019452,2]
[375200085,1753583445045,-460.0,0.00019452,2]
[375200086,1753583445055,-460.0,0.00019452,2]
[375200087,1753583445065,-460.0,0.00019452,2]
[375200088,1753583445074,-460.0,0.00019452,2]
[375200089,1753583445084,-460.0,0.00019452,2]
[375200090,1753583445093,-460.0,0.00019452,2]
[375200091,1753583445102,-460.0,0.00019452,2]
[375200092,1753583445112,-464.11181518,0.00019452,2]
[375200093,1753583445121,-460.0,0.00019452,2]
[375200094,1753583445131,-460.0,0.00019452,2]
[375200095,1753583445140,-155.61790183,0.00019452,2]
[375200096,1753583445150,-460.0,0.00019452,2]
[375200097,1753583445159,-460.0,0.00019452,2]
[375200098,1753583445168,-460.0,0.00019452,2]
[375200099,1753583445178,-460.0,0.00019452,2]
[375200100,1753583445187,-460.0,0.00019452,2]
[375200101,1753583445196,-340.35989141,0.00019452,2]
[375200102,1753583445206,-460.0,0.00019452,2]
[375200103,1753583445217,-208.65086261,0.00019452,2]
[375200104,1753583445227,-460.0,0.00019452,2]
[375200105,1753583445237,-460.0,0.00019452,2]
[375200106,1753583445246,-460.0,0.00019452,2]
[375200107,1753583445256,-460.0,0.00019452,2]
[375200108,1753583445265,-460.0,0.00019452,2]
[375200109,1753583445275,-460.0,0.00019452,2]
[375200110,1753583445284,-465.15337005,0.00019452,2]
[375200111,1753583445294,-460.0,0.00019452,2]
[375200112,1753583445303,-467.42316224,0.00019452,2]
[375200113,1753583445313,-460.0,0.00019452,2]
[375200114,1753583445323,-460.0,0.00019452,2]
[375200115,1753583445332,-460.0,0.00019452,2]
[375200116,1753583445342,-463.56089164,0.00019452,2]
[375200117,1753583445351,-460.0,0.00019452,2]
[375200118,1753583445361,-547.84,0.00019452,2]
[375200119,1753583445371,-460.0,0.00019452,2]
[375200120,1753583445380,-631.34,0.00019452,2]
[375200121,1753583445390,-298.65827068,0.00019452,2]
[375200122,1753583445399,-460.0,0.00019452,2]
[375200123,1753583445410,-466.23696874,0.00019452,2]
[375200124,1753583445419,-460.0,0.00019452,2]
[375200125,1753583445428,-460.0,0.00019452,2]
[375200126,1753583445438,-460.0,0.00019452,2]
[375200127,1753583445447,-460.0,0.00019452,2]
[375200128,1753583445456,-460.0,0.00019452,2]
[375200129,1753583445467,-460.0,0.00019452,2]
[375200130,1753583445476,-460.0,0.00019452,2]
[375200131,1753583445486,-460.0,0.00019452,2]
[375200132,1753583445495,-560.27666211,0.00019452,2]
[375200133,1753583445505,-460.0,0.00019452,2]
[375200134,1753583445516,-532.26,0.00019452,2]
[375200135,1753583445531,-463.8079176,0.00019452,2]
[375200136,1753583445541,-460.0,0.00019452,2]
[375200137,1753583445551,-460.0,0.00019452,2]
[375200138,1753583445562,-306.91726116,0.00019452,2]
[375200139,1753583445572,-460.0,0.00019452,2]
[375200140,1753583445583,-460.0,0.00019452,2]
[375200141,1753583445598,-460.0,0.00019452,2]
[375200142,1753583445616,-460.0,0.00019452,2]
[375200144,1753583445632,-460.0,0.00019452,2]
[375200146,1753583445647,-471.53660898,0.00019452,2]
[375200147,1753583445662,-460.0,0.00019452,2]
[375200148,1753583445677,-460.0,0.00019452,2]
[375200150,1753583445693,-460.0,0.00019452,2]
[375200151,1753583445707,-460.0,0.00019452,2]
[375200152,1753583445722,-466.46978725,0.00019452,2]
[375200153,1753583445738,-460.0,0.00019452,2]
[375200154,1753583445751,-460.0,0.00019452,2]
[375200155,1753583445764,-822.33,0.00019452,2]
[375200156,1753583445778,-460.0,0.00019452,2]
[375200157,1753583445792,-469.11529618,0.00019452,2]
[375200158,1753583445807,-460.0,0.00019452,2]
[375200159,1753583445820,-460.0,0.00019452,2]
[375200160,1753583445831,-466.74919616,0.00019452,2]
[375200161,1753583445844,-466.32734469,0.00019452,2]
[375200163,1753583445856,-876.43,0.00019452,2]
[375200165,1753583445871,-460.0,0.00019452,2]
[375200167,1753583445885,-460.0,0.00019452,2]
[375200169,1753583445900,-465.39612538,0.00019452,2]
[375200171,1753583445916,-494.95,0.00019452,2]
[375200174,1753583445932,-460.0,0.00019452,2]
[375200176,1753583445946,-460.0,0.00019452,2]
[375200177,1753583445957,-414.27512553,0.00019452,2]
[375200179,1753583445969,-460.0,0.00019452,2]
[375200181,1753583445982,-460.0,0.00019452,2]
[375200182,1753583445997,-460.0,0.00019452,2]
[375200183,1753583446010,-460.0,0.00019452,2]
[375200184,1753583446022,-463.78579144,0.00019452,2]
[375200186,1753583446035,-475.02596355,0.00019452,2]
[375200188,1753583446049,-460.0,0.00019452,2]
[375200190,1753583446060,-460.0,0.00019452,2]
[375200192,1753583446073,-891.87,0.00019452,2]
[375200193,1753583446085,-460.0,0.00019452,2]
[375200194,1753583446097,-460.0,0.00019452,2]
[375200195,1753583446109,-460.0,0.00019452,2]
[375200196,1753583446121,-460.0,0.00019452,2]
[375200198,1753583446133,-460.0,0.00019452,2]
[375200200,1753583446147,-460.0,0.00019452,2]
[375200202,1753583446159,-460.0,0.00019452,2]
[375200204,1753583446170,-460.0,0.00019452,2]
[375200206,1753583446182,-460.0,0.00019452,2]
[375200208,1753583446194,-463.13262049,0.00019452,2]
[375200211,1753583446209,-460.0,0.00019452,2]
[375200213,1753583446220,-464.14269702,0.00019452,2]
[375200215,1753583446233,-460.0,0.00019452,2]
[375200217,1753583446245,-244.9121723,0.00019452,2]
[375200219,1753583446257,-460.0,0.00019452,2]
[375200221,1753583446269,-460.0,0.00019452,2]
[375200224,1753583446281,-460.0,0.00019452,2]
[375200226,1753583446294,-460.0,0.00019452,2]
[375200228,1753583446306,-543.71440291,0.00019452,2]
[375200230,1753583446319,-460.0,0.00019452,2]
[375200232,1753583446332,-460.0,0.00019452,2]
[375200233,1753583446344,-460.0,0.00019452,2]
[375200234,1753583446356,-506.11791154,0.00019452,2]
[375200235,1753583446368,-460.0,0.00019452,2]
[375200236,1753583446379,-513.69,0.00019452,2]
[375200237,1753583446391,-460.0,0.00019452,2]
[375200238,1753583446403,-465.06723406,0.00019452,2]
[375200239,1753583446415,-460.0,0.00019452,2]
[375200240,1753583446427,-460.0,0.00019452,2]
[375200241,1753583446439,-460.0,0.00019452,2]
[375200242,1753583446450,-460.0,0.00019452,2]
[375200244,1753583446463,-460.0,0.00019452,2]
[375200246,1753583446475,-460.0,0.00019452,2]
[375200249,1753583446487,-460.0,0.00019452,2]
[375200251,1753583446499,-499.86,0.00019452,2]
[375200253,1753583446511,-460.0,0.00019452,2]
[375200255,1753583446526,-460.0,0.00019452,2]
[375200257,1753583446537,-460.0,0.00019452,2]
[375200259,1753583446549,-460.0,0.00019452,2]
[375200262,1753583446561,-460.0,0.00019452,2]
[375200264,1753583446574,-460.0,0.00019452,2]
[375200266,1753583446586,-498.19,0.00019452,2]
[375200268,1753583446600,-460.0,0.00019452,2]
[375200271,1753583446612,-460.0,0.00019452,2]
[375200273,1753583446624,-181.83392642,0.00019452,2]
[375200275,1753583446636,-460.0,0.00019452,2]
[375200277,1753583446647,-460.0,0.00019452,2]
[375200280,1753583446659,-464.00815899,0.00019452,2]
[375200282,1753583446671,-460.0,0.00019452,2]
[375200284,1753583446682,-460.0,0.00019452,2]
[375200286,1753583446694,-460.0,0.00019452,2]
[375200289,1753583446706,-460.0,0.00019452,2]
[375200291,1753583446720,-460.0,0.00019452,2]
[375200293,1753583446732,-460.0,0.00019452,2]
[375200295,1753583446743,-460.0,0.00019452,2]
[375200298,1753583446755,-328.60933985,0.00019452,2]
[375200300,1753583446767,-460.0,0.00019452,2]
[375200302,1753583446779,-460.0,0.00019452,2]
[375200304,1753583446791,-460.0,0.00019452,2]
[375200324,1753583446974,-460.0,0.00019452,2]
[375200326,1753583446984,-2168.67,0.00019452,2]
[375200328,1753583446994,-460.0,0.00019452,2]
[375200330,1753583447003,-460.0,0.00019452,2]
[375200332,1753583447013,-460.0,0.00019452,2]
[375200334,1753583447022,-533.42,0.00019452,2]
[375200337,1753583447033,-463.71043845,0.00019452,2]
[375200338,1753583447043,-463.88084968,0.00019452,2]
[375200340,1753583447053,-460.0,0.00019452,2]
[375200342,1753583447063,-463.76082311,0.00019452,2]
[375200344,1753583447072,-461.65242606,0.00019452,2]
[375200346,1753583447082,-460.0,0.00019452,2]
[375200348,1753583447092,-468.95412678,0.00019452,2]
[375200351,1753583447102,-460.0,0.00019452,2]
[375200353,1753583447112,-460.0,0.00019452,2]
[375200354,1753583447121,-460.0,0.00019452,2]
[375200356,1753583447130,-460.0,0.00019452,2]
[375200359,1753583447140,-460.0,0.00019452,2]
[375200360,1753583447151,-990.56,0.00019452,2]
[375200363,1753583447161,-460.0,0.00019452,2]
[375200365,1753583447170,-465.52722052,0.00019452,2]
[375200366,1753583447180,-463.5700089,0.00019452,2]
[375200368,1753583447190,-460.0,0.00019452,2]
[375200369,1753583447199,-759.02,0.00019452,2]
[375200370,1753583447210,-460.0,0.00019452,2]
[375200371,1753583447220,-460.0,0.00019452,2]
[375200372,1753583447229,-569.57,0.00019452,2]
[375200373,1753583447238,-460.0,0.00019452,2]
[375200374,1753583447247,-460.0,0.00019452,2]
[375200375,1753583447257,-460.0,0.00019452,2]
[375200376,1753583447266,-460.0,0.00019452,2]
[375200377,1753583447275,-460.0,0.00019452,2]
[375200378,1753583447285,-460.0,0.00019452,2]
[375200379,1753583447294,-554.86392147,0.00019452,2]
[375200380,1753583447303,-460.0,0.00019452,2]
[375200381,1753583447313,-550.19,0.00019452,2]
[375200382,1753583447322,-460.0,0.00019452,2]
[375200383,1753583447332,-606.520862,0.00019452,2]
[375200384,1753583447342,-460.0,0.00019452,2]
[375200385,1753583447351,-460.0,0.00019452,2]
[375200386,1753583447360,-460.0,0.00019452,2]
[375200387,1753583447369,-460.0,0.00019452,2]
[375200388,1753583447379,-734.23,0.00019452,2]
[375200389,1753583447388,-466.80184536,0.00019452,2]
[375200390,1753583447398,-460.0,0.00019452,2]
[375200391,1753583447408,-476.87836131,0.00019452,2]
[375200392,1753583447418,-463.08209475,0.00019452,2]
[375200393,1753583447427,-708.32,0.00019452,2]
[375200394,1753583447437,-460.0,0.00019452,2]
[375200395,1753583447447,-460.0,0.00019452,2]
[375200396,1753583447456,-460.0,0.00019452,2]
[375200397,1753583447468,-460.0,0.00019452,2]
[375200398,1753583447478,-460.0,0.00019452,2]
[375200399,1753583447488,-460.0,0.00019452,2]
[375200400,1753583447497,-460.0,0.00019452,2]
[375200401,1753583447507,-460.0,0.00019452,2]
[375200402,1753583447517,-460.0,0.00019452,2]
[375200403,1753583447530,-460.0,0.00019452,2]
[375200404,1753583447540,-491.72,0.00019452,2]
[375200405,1753583447550,-2306.74,0.00019452,2]
[375200406,1753583447560,-461.63849911,0.00019452,2]
[375200407,1753583447571,-460.0,0.00019452,2]
[375200408,1753583447580,-460.0,0.00019452,2]
[375200409,1753583447590,-460.0,0.00019452,2]
[375200410,1753583447603,-688.32,0.00019452,2]
[375200411,1753583447613,-460.0,0.00019452,2]
[375200412,1753583447623,-502.81905966,0.00019452,2]
[375200413,1753583447633,-460.0,0.00019452,2]
[375200414,1753583447643,-460.0,0.00019452,2]
[375200415,1753583447651,-632.34,0.00019452,2]
[375200416,1753583447661,-460.0,0.00019452,2]
[375200417,1753583447670,-670.75,0.00019452,2]
[375200418,1753583447679,-462.82244201,0.00019452,2]
[375200419,1753583447690,-466.10632188,0.00019452,2]
[375200420,1753583447700,-3263.29,0.00019452,2]
[375200421,1753583447714,-460.0,0.00019452,2]
[375200422,1753583447724,-564.46438536,0.00019452,2]
[375200423,1753583447733,-516.66,0.00019452,2]
[375200424,1753583447743,-470.35475274,0.00019452,2]
[375200425,1753583447753,-4844.33,0.00019452,2]
[375200426,1753583447763,-463.1076209,0.00019452,2]
[375200427,1753583447773,-599.61,0.00019452,2]
[375200428,1753583447782,-1875.66,0.00019452,2]
[375200429,1753583447792,-1340.76,0.00019452,2]
[375200430,1753583447801,-460.0,0.00019452,2]
[375200431,1753583447811,-724.58,0.00019452,2]
[375200432,1753583447820,-460.0,0.00019452,2]
[375200433,1753583447830,-460.0,0.00019452,2]
[375200434,1753583447840,-629.06,0.00019452,2]
[375200435,1753583447850,-460.0,0.00019452,2]
[375200436,1753583447859,-1096.6,0.00019452,2]
[375200437,1753583447868,-460.0,0.00019452,2]
[375200438,1753583447878,-629.24,0.00019452,2]
[375200439,1753583447887,-461.79493299,0.00019452,2]
[375200440,1753583447897,-460.0,0.00019452,2]
[375200441,1753583447908,-598.65,0.00019452,2]
[375200442,1753583447917,-476.80143459,0.00019452,2]
[375200443,1753583447927,-460.0,0.00019452,2]
[375200444,1753583447936,-1031.22,0.00019452,2]
[375200445,1753583447946,-460.0,0.00019452,2]
[375200446,1753583447956,-460.0,0.00019452,2]
[375200447,1753583447967,-460.0,0.00019452,2]
[375200448,1753583447976,-3128.32,0.00019452,2]
[375200449,1753583447986,-460.0,0.00019452,2]
[375200450,1753583447996,-460.0,0.00019452,2]
[375200451,1753583448006,-460.0,0.00019452,2]
[375200452,1753583448016,-551.87,0.00019452,2]
[375200453,1753583448025,-460.0,0.00019452,2]
[375200454,1753583448034,-161.33614548,0.00019452,2]
[375200455,1753583448044,-460.0,0.00019452,2]
[375200456,1753583448053,-367.59173756,0.00019452,2]
[375200457,1753583448062,-460.0,0.00019452,2]
[375200458,1753583448072,-502.57,0.00019452,2]
[375200459,1753583448081,-460.0,0.00019452,2]
[375200460,1753583448091,-1708.28,0.00019452,2]
[375200461,1753583448100,-460.0,0.00019452,2]
[375200462,1753583448110,-540.2,0.00019452,2]
[375200463,1753583448119,-460.0,0.00019452,2]
[375200464,1753583448129,-480.15,0.00019452,2]
[375200465,1753583448138,-460.0,0.00019452,2]
[375200466,1753583448148,-460.0,0.00019452,2]
[375200467,1753583448158,-460.0,0.00019452,2]
[375200468,1753583448167,-530.23,0.00019452,2]
[375200469,1753583448177,-460.0,0.00019452,2]
[375200470,1753583448187,-460.0,0.00019452,2]
[375200471,1753583448197,-509.37,0.00019452,2]
[375200472,1753583448207,-541.9623873,0.00019452,2]
[375200473,1753583448217,-460.0,0.00019452,2]
[375200474,1753583448227,-735.01,0.00019452,2]